[Event "Titled Tuesday Blitz January 17 Early 2023"]
[White "Ismagilov, Damir"]
[Black "Tokhirjonova, Gulrukhbegim"]
[WhiteFideId "34199982"]
[BlackFideId "14203626"]
[WhiteElo "2156"]
[BlackElo "2340"]
[Result "1-0"]
[Round "06"]
[TimeControl "180+2"]
[Date "2023.01.17"]
[WhiteClock "0:00:09"]
[BlackClock "0:00:06"]

1. e4 {[%clk 0:02:54]}  e5 {[%clk 0:02:58]} 2. Nf3 {[%clk 0:02:54]}  Nc6 {[%clk 0:02:58]} 3. Nc3 {[%clk 0:02:54]}  Nf6 {[%clk 0:02:58]} 4. a4 {[%clk 0:02:53]}  Bd6 {[%clk 0:02:56]} 5. Bc4 {[%clk 0:02:46]}  O-O {[%clk 0:02:55]} 6. d3 {[%clk 0:02:40]}  h6 {[%clk 0:02:54]} 7. O-O {[%clk 0:02:40]}  Bc5 {[%clk 0:02:53]} 8. Be3 {[%clk 0:02:34]}  d6 {[%clk 0:02:53]} 9. h3 {[%clk 0:02:32]}  a6 {[%clk 0:02:50]} 10. Qd2 {[%clk 0:02:26]}  Kh7 {[%clk 0:02:49]} 11. a5 {[%clk 0:02:08]}  Be6 {[%clk 0:02:48]} 12. Nd5 {[%clk 0:02:02]}  Nd4 {[%clk 0:02:46]} 13. Nxd4 {[%clk 0:02:00]}  Bxd4 {[%clk 0:02:33]} 14. Bxd4 {[%clk 0:01:49]}  exd4 {[%clk 0:02:34]} 15. Nxf6+ {[%clk 0:01:48]}  Qxf6 {[%clk 0:02:33]} 16. Bxe6 {[%clk 0:01:49]}  fxe6 {[%clk 0:02:34]} 17. f4 {[%clk 0:01:47]}  c5 {[%clk 0:02:24]} 18. Qe2 {[%clk 0:01:31]}  Rae8 {[%clk 0:02:20]} 19. e5 {[%clk 0:01:27]}  dxe5 {[%clk 0:02:03]} 20. fxe5 {[%clk 0:01:27]}  Qg6 {[%clk 0:02:03]} 21. Rf3 {[%clk 0:01:23]}  Rf5 {[%clk 0:02:00]} 22. Rxf5 {[%clk 0:01:15]}  exf5 {[%clk 0:02:00]} 23. Re1 {[%clk 0:01:15]}  f4 {[%clk 0:01:26]} 24. Qf3 {[%clk 0:01:11]}  Qf5 {[%clk 0:01:25]} 25. Re4 {[%clk 0:00:47]}  Rxe5 {[%clk 0:01:21]} 26. Rxf4 {[%clk 0:00:47]}  Qg5 {[%clk 0:01:05]} 27. Kh2 {[%clk 0:00:38]}  Re3 {[%clk 0:01:03]} 28. Qg4 {[%clk 0:00:29]}  Qxg4 {[%clk 0:01:01]} 29. hxg4 {[%clk 0:00:28]}  Re2 {[%clk 0:00:54]} 30. Rf7 {[%clk 0:00:28]}  Rxc2 {[%clk 0:00:53]} 31. Rxb7 {[%clk 0:00:29]}  Rd2 {[%clk 0:00:53]} 32. Rb6 {[%clk 0:00:26]}  Rxd3 {[%clk 0:00:52]} 33. Rxa6 {[%clk 0:00:27]}  Rb3 {[%clk 0:00:51]} 34. Rb6 {[%clk 0:00:23]}  Rxb6 {[%clk 0:00:40]} 35. axb6 {[%clk 0:00:24]}  d3 {[%clk 0:00:40]} 36. b7 {[%clk 0:00:24]}  d2 {[%clk 0:00:41]} 37. b8=Q {[%clk 0:00:25]}  d1=Q {[%clk 0:00:42]} 38. Qf4 {[%clk 0:00:19]}  Qe2 {[%clk 0:00:05]} 39. Qf5+ {[%clk 0:00:17]}  Kh8 {[%clk 0:00:06]} 40. b3 {[%clk 0:00:16]}  Qb5 {[%clk 0:00:04]} 41. Qf8+ {[%clk 0:00:14]}  Kh7 {[%clk 0:00:04]} 42. Qf5+ {[%clk 0:00:14]}  Kh8 {[%clk 0:00:05]} 43. Qe6 {[%clk 0:00:15]}  Qb4 {[%clk 0:00:02]} 44. Qc8+ {[%clk 0:00:11]}  Kh7 {[%clk 0:00:02]} 45. Qf5+ {[%clk 0:00:11]}  Kh8 {[%clk 0:00:02]} 46. Qe6 {[%clk 0:00:12]}  Qf4+ {[%clk 0:00:02]} 47. Kh3 {[%clk 0:00:12]}  Qb4 {[%clk 0:00:03]} 48. Kg3 {[%clk 0:00:11]}  Qc3+ {[%clk 0:00:02]} 49. Kf4 {[%clk 0:00:11]}  Qd2+ {[%clk 0:00:03]} 50. Kf5 {[%clk 0:00:09]}  Qxg2 {[%clk 0:00:02]} 51. Qc8+ {[%clk 0:00:08]}  Kh7 {[%clk 0:00:02]} 52. Qxc5 {[%clk 0:00:08]}  Qf1+ {[%clk 0:00:02]} 53. Ke6 {[%clk 0:00:05]}  Qa6+ {[%clk 0:00:01]} 54. Qd6 {[%clk 0:00:05]}  Qe2+ {[%clk 0:00:01]} 55. Qe5 {[%clk 0:00:05]}  Qxg4+ {[%clk 0:00:01]} 56. Qf5+ {[%clk 0:00:05]}  Qxf5+ {[%clk 0:00:01]} 57. Kxf5 {[%clk 0:00:06]}  g6+ {[%clk 0:00:01]} 58. Kf6 {[%clk 0:00:06]}  h5 {[%clk 0:00:02]} 59. b4 {[%clk 0:00:06]}  h4 {[%clk 0:00:03]} 60. b5 {[%clk 0:00:07]}  h3 {[%clk 0:00:03]} 61. b6 {[%clk 0:00:08]}  h2 {[%clk 0:00:04]} 62. b7 {[%clk 0:00:09]}  h1=Q {[%clk 0:00:04]} 63. b8=Q {[%clk 0:00:10]}  Qf3+ {[%clk 0:00:05]} 64. Kg5 {[%clk 0:00:09]}  Qe3+ {[%clk 0:00:05]} 65. Kg4 {[%clk 0:00:09]}  Qe4+ {[%clk 0:00:05]} 66. Kg3 {[%clk 0:00:09]}  Qd3+ {[%clk 0:00:05]} 67. Kg4 {[%clk 0:00:09]}  Qf5+ {[%clk 0:00:05]} 68. Kg3 {[%clk 0:00:10]}  Qg5+ {[%clk 0:00:06]} 69. Kh3 {[%clk 0:00:09]}  Qf5+ {[%clk 0:00:06]} 70. Kg3 {[%clk 0:00:10]}  Kh6 {[%clk 0:00:07]} 71. Qh8+ {[%clk 0:00:08]}  Kg5 {[%clk 0:00:06]} 72. Qh4# {[%clk 0:00:09]} 1-0


[Site "https://www.chess.com"]

[Event "Titled Tuesday Blitz January 17 Early 2023"]
[White "Odegov, Artem"]
[Black "Wahedi, Ahmad Siar"]
[WhiteFideId "34183644"]
[BlackFideId "4651260"]
[WhiteElo "2261"]
[BlackElo "2274"]
[Result "1-0"]
[Round "06"]
[TimeControl "180+2"]
[Date "2023.01.17"]
[WhiteClock "0:01:46"]
[BlackClock "0:01:52"]

1. d4 {[%clk 0:03:00]}  d5 {[%clk 0:02:59]} 2. c4 {[%clk 0:03:00]}  c6 {[%clk 0:03:00]} 3. Nc3 {[%clk 0:03:00]}  Nf6 {[%clk 0:03:00]} 4. Nf3 {[%clk 0:02:58]}  e6 {[%clk 0:03:00]} 5. Bg5 {[%clk 0:02:58]}  h6 {[%clk 0:03:00]} 6. Bh4 {[%clk 0:02:58]}  Nbd7 {[%clk 0:02:57]} 7. e3 {[%clk 0:02:57]}  Bd6 {[%clk 0:02:54]} 8. Qc2 {[%clk 0:02:55]}  b6 {[%clk 0:02:51]} 9. cxd5 {[%clk 0:02:53]}  exd5 {[%clk 0:02:51]} 10. Bd3 {[%clk 0:02:44]}  Bb7 {[%clk 0:02:49]} 11. O-O {[%clk 0:02:44]}  O-O {[%clk 0:02:48]} 12. Rac1 {[%clk 0:02:44]}  Rc8 {[%clk 0:02:48]} 13. Bf5 {[%clk 0:02:43]}  g5 {[%clk 0:02:46]} 14. Bg3 {[%clk 0:02:43]}  Bxg3 {[%clk 0:02:43]} 15. hxg3 {[%clk 0:02:41]}  Qe7 {[%clk 0:02:44]} 16. Ne5 {[%clk 0:02:39]}  Rcd8 {[%clk 0:02:36]} 17. f4 {[%clk 0:02:21]}  Nxe5 {[%clk 0:02:36]} 18. fxe5 {[%clk 0:02:20]}  Nh5 {[%clk 0:02:36]} 19. Rf3 {[%clk 0:02:14]}  c5 {[%clk 0:02:29]} 20. Rcf1 {[%clk 0:02:10]}  f6 {[%clk 0:02:22]} 21. Bg4 {[%clk 0:02:06]}  Nxg3 {[%clk 0:02:16]} 22. Qg6+ {[%clk 0:02:01]}  Qg7 {[%clk 0:02:13]} 23. Be6+ {[%clk 0:01:51]}  Kh8 {[%clk 0:02:13]} 24. Qxg7+ {[%clk 0:01:52]}  Kxg7 {[%clk 0:02:13]} 25. exf6+ {[%clk 0:01:52]}  Kg6 {[%clk 0:02:12]} 26. Rxg3 {[%clk 0:01:51]}  cxd4 {[%clk 0:02:12]} 27. exd4 {[%clk 0:01:51]}  Rxf6 {[%clk 0:02:11]} 28. Rxf6+ {[%clk 0:01:51]}  Kxf6 {[%clk 0:02:11]} 29. Bg4 {[%clk 0:01:52]}  Re8 {[%clk 0:02:09]} 30. Rf3+ {[%clk 0:01:52]}  Kg7 {[%clk 0:02:09]} 31. Kf2 {[%clk 0:01:51]}  Bc6 {[%clk 0:02:08]} 32. Bh5 {[%clk 0:01:51]}  Re7 {[%clk 0:02:08]} 33. Ne2 {[%clk 0:01:49]}  Re4 {[%clk 0:01:55]} 34. Ng3 {[%clk 0:01:48]}  Re7 {[%clk 0:01:52]} 35. Nf5+ {[%clk 0:01:46]} 1-0


[Site "https://www.chess.com"]

[Event "Titled Tuesday Blitz January 17 Early 2023"]
[White "Mohamed Anees M"]
[Black "Bon, Michael"]
[WhiteFideId "35065815"]
[BlackFideId "620696"]
[WhiteElo "2315"]
[BlackElo "2394"]
[Result "1-0"]
[Round "06"]
[TimeControl "180+2"]
[Date "2023.01.17"]
[WhiteClock "0:00:57"]
[BlackClock "0:00:01"]

1. Nf3 {[%clk 0:03:00]}  d5 {[%clk 0:02:56]} 2. b3 {[%clk 0:03:01]}  g6 {[%clk 0:02:52]} 3. Bb2 {[%clk 0:03:01]}  Nf6 {[%clk 0:02:52]} 4. Bxf6 {[%clk 0:02:59]}  exf6 {[%clk 0:02:52]} 5. g3 {[%clk 0:02:57]}  Bg7 {[%clk 0:02:51]} 6. d4 {[%clk 0:02:56]}  f5 {[%clk 0:02:35]} 7. e3 {[%clk 0:02:56]}  Be6 {[%clk 0:02:31]} 8. Bg2 {[%clk 0:02:56]}  O-O {[%clk 0:02:18]} 9. O-O {[%clk 0:02:56]}  Nd7 {[%clk 0:02:15]} 10. Nc3 {[%clk 0:02:56]}  c6 {[%clk 0:01:57]} 11. Ne2 {[%clk 0:02:56]}  g5 {[%clk 0:01:41]} 12. Rc1 {[%clk 0:02:52]}  b5 {[%clk 0:01:35]} 13. h4 {[%clk 0:02:48]}  h6 {[%clk 0:01:35]} 14. c3 {[%clk 0:02:44]}  Bf6 {[%clk 0:01:33]} 15. h5 {[%clk 0:02:39]}  Kg7 {[%clk 0:01:31]} 16. Qd3 {[%clk 0:02:38]}  Nb6 {[%clk 0:01:17]} 17. Ne5 {[%clk 0:02:35]}  a5 {[%clk 0:01:04]} 18. Nxc6 {[%clk 0:02:33]}  Qd6 {[%clk 0:00:58]} 19. Qxb5 {[%clk 0:02:31]}  Nd7 {[%clk 0:00:22]} 20. f4 {[%clk 0:02:23]}  Rfc8 {[%clk 0:00:20]} 21. Ne5 {[%clk 0:02:23]}  a4 {[%clk 0:00:15]} 22. Qd3 {[%clk 0:02:18]}  g4 {[%clk 0:00:14]} 23. c4 {[%clk 0:02:18]}  axb3 {[%clk 0:00:11]} 24. axb3 {[%clk 0:02:16]}  Rab8 {[%clk 0:00:08]} 25. cxd5 {[%clk 0:02:01]}  Bxd5 {[%clk 0:00:08]} 26. Qxf5 {[%clk 0:01:49]}  Bxg2 {[%clk 0:00:07]} 27. Kxg2 {[%clk 0:01:50]}  Rxc1 {[%clk 0:00:04]} 28. Rxc1 {[%clk 0:01:03]}  Qd5+ {[%clk 0:00:02]} 29. e4 {[%clk 0:01:02]}  Qxb3 {[%clk 0:00:02]} 30. Qxg4+ {[%clk 0:00:57]}  Kh7 {[%clk 0:00:01]} 31. Nxd7 {[%clk 0:00:57]} 1-0


[Site "https://www.chess.com"]

[Event "Titled Tuesday Blitz January 17 Early 2023"]
[White "Osmak, Yuliia"]
[Black "Papayan, Oleg"]
[WhiteFideId "14101602"]
[BlackFideId "4193911"]
[WhiteElo "2440"]
[BlackElo "2253"]
[Result "0-1"]
[Round "06"]
[TimeControl "180+2"]
[Date "2023.01.17"]
[WhiteClock "0:00:01"]
[BlackClock "0:00:20"]

1. e4 {[%clk 0:02:54]}  c5 {[%clk 0:03:00]} 2. b3 {[%clk 0:02:53]}  b6 {[%clk 0:02:58]} 3. Bb2 {[%clk 0:02:52]}  Bb7 {[%clk 0:02:58]} 4. Nc3 {[%clk 0:02:44]}  Nf6 {[%clk 0:02:56]} 5. e5 {[%clk 0:02:35]}  Nd5 {[%clk 0:02:56]} 6. Nxd5 {[%clk 0:02:35]}  Bxd5 {[%clk 0:02:56]} 7. Nf3 {[%clk 0:02:31]}  e6 {[%clk 0:02:51]} 8. c4 {[%clk 0:02:30]}  Bb7 {[%clk 0:02:51]} 9. d4 {[%clk 0:02:28]}  cxd4 {[%clk 0:02:51]} 10. Qxd4 {[%clk 0:02:26]}  Nc6 {[%clk 0:02:50]} 11. Qg4 {[%clk 0:02:25]}  Bb4+ {[%clk 0:02:49]} 12. Nd2 {[%clk 0:02:12]}  Bxd2+ {[%clk 0:02:49]} 13. Kxd2 {[%clk 0:02:12]}  O-O {[%clk 0:02:49]} 14. Rd1 {[%clk 0:02:06]}  a5 {[%clk 0:02:47]} 15. a3 {[%clk 0:01:40]}  a4 {[%clk 0:02:36]} 16. b4 {[%clk 0:01:39]}  Ne7 {[%clk 0:02:36]} 17. Kc1 {[%clk 0:01:33]}  b5 {[%clk 0:02:28]} 18. c5 {[%clk 0:01:24]}  Bc6 {[%clk 0:02:25]} 19. Bd3 {[%clk 0:01:19]}  Nd5 {[%clk 0:02:19]} 20. h4 {[%clk 0:01:17]}  Qe8 {[%clk 0:02:13]} 21. h5 {[%clk 0:01:15]}  f5 {[%clk 0:02:13]} 22. exf6 {[%clk 0:01:14]}  Nxf6 {[%clk 0:02:12]} 23. Qg3 {[%clk 0:01:10]}  h6 {[%clk 0:01:39]} 24. Rh4 {[%clk 0:00:56]}  Qe7 {[%clk 0:01:34]} 25. Qg6 {[%clk 0:00:55]}  Qf7 {[%clk 0:01:32]} 26. Qg3 {[%clk 0:00:43]}  Rae8 {[%clk 0:01:18]} 27. Bg6 {[%clk 0:00:41]}  Qe7 {[%clk 0:01:19]} 28. Bxe8 {[%clk 0:00:40]}  Qxe8 {[%clk 0:01:18]} 29. Rf4 {[%clk 0:00:31]}  Nxh5 {[%clk 0:01:14]} 30. Rxf8+ {[%clk 0:00:28]}  Qxf8 {[%clk 0:01:15]} 31. Qg6 {[%clk 0:00:22]}  Nf4 {[%clk 0:01:07]} 32. Qg4 {[%clk 0:00:16]}  Nxg2 {[%clk 0:00:55]} 33. Rg1 {[%clk 0:00:15]}  Bf3 {[%clk 0:00:47]} 34. Qg3 {[%clk 0:00:14]}  g5 {[%clk 0:00:27]} 35. Rxg2 {[%clk 0:00:14]}  Bxg2 {[%clk 0:00:28]} 36. Qxg2 {[%clk 0:00:14]}  Qf4+ {[%clk 0:00:28]} 37. Kb1 {[%clk 0:00:14]}  Qf5+ {[%clk 0:00:25]} 38. Ka1 {[%clk 0:00:14]}  Qd3 {[%clk 0:00:24]} 39. Qg1 {[%clk 0:00:13]}  Kf7 {[%clk 0:00:23]} 40. Qe1 {[%clk 0:00:13]}  Kg6 {[%clk 0:00:20]} 41. Qb1 {[%clk 0:00:13]}  Qf5 {[%clk 0:00:19]} 42. Qxf5+ {[%clk 0:00:12]}  exf5 {[%clk 0:00:20]} 43. Kb1 {[%clk 0:00:12]}  h5 {[%clk 0:00:20]} 44. Kc2 {[%clk 0:00:12]}  h4 {[%clk 0:00:21]} 45. Be5 {[%clk 0:00:10]}  f4 {[%clk 0:00:20]} 46. Kd2 {[%clk 0:00:01]}  h3 {[%clk 0:00:20]} 47. Ke2 {[%clk 0:00:01]}  h2 {[%clk 0:00:20]} 0-1


[Site "https://www.chess.com"]

[Event "Titled Tuesday Blitz January 17 Early 2023"]
[White "Gutkin, Ilya"]
[Black "Aldokhin, Ivan"]
[WhiteFideId "16203470"]
[BlackFideId "24115720"]
[WhiteElo "2273"]
[BlackElo "2413"]
[Result "0-1"]
[Round "06"]
[TimeControl "180+2"]
[Date "2023.01.17"]
[WhiteClock "0:00:01"]
[BlackClock "0:01:04"]

1. e4 {[%clk 0:03:00]}  c5 {[%clk 0:03:00]} 2. Nf3 {[%clk 0:03:01]}  e6 {[%clk 0:03:01]} 3. d4 {[%clk 0:03:01]}  cxd4 {[%clk 0:03:02]} 4. Nxd4 {[%clk 0:03:02]}  a6 {[%clk 0:03:02]} 5. Nc3 {[%clk 0:03:02]}  Qc7 {[%clk 0:03:03]} 6. a3 {[%clk 0:03:00]}  Nf6 {[%clk 0:03:03]} 7. Bg5 {[%clk 0:02:53]}  Be7 {[%clk 0:02:53]} 8. Be2 {[%clk 0:02:48]}  d6 {[%clk 0:02:52]} 9. O-O {[%clk 0:02:47]}  b5 {[%clk 0:02:52]} 10. f4 {[%clk 0:02:30]}  Bb7 {[%clk 0:02:48]} 11. Bf3 {[%clk 0:02:30]}  Nbd7 {[%clk 0:02:48]} 12. Nb3 {[%clk 0:02:22]}  h6 {[%clk 0:02:32]} 13. Bh4 {[%clk 0:02:16]}  g5 {[%clk 0:02:32]} 14. Bg3 {[%clk 0:02:06]}  gxf4 {[%clk 0:02:30]} 15. Bxf4 {[%clk 0:02:07]}  Ne5 {[%clk 0:02:30]} 16. Bxe5 {[%clk 0:02:04]}  dxe5 {[%clk 0:02:30]} 17. Qe2 {[%clk 0:01:51]}  Rc8 {[%clk 0:02:24]} 18. Kh1 {[%clk 0:01:40]}  h5 {[%clk 0:02:22]} 19. Rf2 {[%clk 0:01:16]}  Qc4 {[%clk 0:02:20]} 20. Raf1 {[%clk 0:01:11]}  Qxe2 {[%clk 0:02:15]} 21. Rxe2 {[%clk 0:00:59]}  Bxa3 {[%clk 0:02:04]} 22. Nxb5 {[%clk 0:00:54]}  Bb4 {[%clk 0:02:03]} 23. Na3 {[%clk 0:00:47]}  Bxa3 {[%clk 0:01:56]} 24. bxa3 {[%clk 0:00:47]}  Ke7 {[%clk 0:01:47]} 25. Na5 {[%clk 0:00:34]}  Ba8 {[%clk 0:01:46]} 26. Rb1 {[%clk 0:00:32]}  Rc5 {[%clk 0:01:41]} 27. Nb3 {[%clk 0:00:26]}  Rc3 {[%clk 0:01:40]} 28. Kg1 {[%clk 0:00:19]}  Rhc8 {[%clk 0:01:39]} 29. Rb2 {[%clk 0:00:17]}  R8c4 {[%clk 0:01:24]} 30. Kf2 {[%clk 0:00:16]}  Nxe4+ {[%clk 0:01:19]} 31. Bxe4 {[%clk 0:00:16]}  Rxe4 {[%clk 0:01:20]} 32. Rxe4 {[%clk 0:00:11]}  Bxe4 {[%clk 0:01:20]} 33. Nd2 {[%clk 0:00:09]}  Rxc2 {[%clk 0:01:15]} 34. Rxc2 {[%clk 0:00:09]}  Bxc2 {[%clk 0:01:14]} 35. Nc4 {[%clk 0:00:05]}  f6 {[%clk 0:01:14]} 36. g3 {[%clk 0:00:03]}  Bd3 {[%clk 0:01:11]} 37. Ne3 {[%clk 0:00:02]}  f5 {[%clk 0:01:10]} 38. Nd1 {[%clk 0:00:02]}  Kd6 {[%clk 0:01:09]} 39. Ke3 {[%clk 0:00:02]}  Bf1 {[%clk 0:01:08]} 40. Nc3 {[%clk 0:00:01]}  Kc5 {[%clk 0:01:07]} 41. Na4+ {[%clk 0:00:01]}  Kb5 {[%clk 0:01:04]} 42. Nc3+ {[%clk 0:00:01]}  Kc4 {[%clk 0:01:04]} 43. Na4 {[%clk 0:00:01]}  Kb3 {[%clk 0:01:03]} 44. Nc5+ {[%clk 0:00:01]}  Kxa3 {[%clk 0:01:04]} 45. Nxe6 {[%clk 0:00:01]}  a5 {[%clk 0:01:04]} 0-1


[Site "https://www.chess.com"]

[Event "Titled Tuesday Blitz January 17 Early 2023"]
[White "Melikhov, Evgeny V."]
[Black "Martynov, Pavel"]
[WhiteFideId "4122046"]
[BlackFideId "4101260"]
[WhiteElo "2269"]
[BlackElo "2414"]
[Result "0-1"]
[Round "06"]
[TimeControl "180+2"]
[Date "2023.01.17"]
[WhiteClock "0:00:52"]
[BlackClock "0:02:38"]

1. d4 {[%clk 0:03:00]}  d5 {[%clk 0:02:59]} 2. c4 {[%clk 0:03:00]}  e6 {[%clk 0:02:57]} 3. Nc3 {[%clk 0:03:00]}  c5 {[%clk 0:02:58]} 4. cxd5 {[%clk 0:02:59]}  exd5 {[%clk 0:02:57]} 5. Nf3 {[%clk 0:02:58]}  Nc6 {[%clk 0:02:58]} 6. g3 {[%clk 0:02:57]}  Nf6 {[%clk 0:02:58]} 7. Bg2 {[%clk 0:02:58]}  Be7 {[%clk 0:02:58]} 8. O-O {[%clk 0:02:58]}  O-O {[%clk 0:02:59]} 9. Bg5 {[%clk 0:02:58]}  cxd4 {[%clk 0:02:58]} 10. Nxd4 {[%clk 0:02:57]}  h6 {[%clk 0:02:59]} 11. Be3 {[%clk 0:02:57]}  Re8 {[%clk 0:02:59]} 12. Rc1 {[%clk 0:02:55]}  Bf8 {[%clk 0:02:59]} 13. Nxc6 {[%clk 0:02:54]}  bxc6 {[%clk 0:03:00]} 14. Na4 {[%clk 0:02:54]}  Bd7 {[%clk 0:03:00]} 15. Bc5 {[%clk 0:02:53]}  Bxc5 {[%clk 0:03:00]} 16. Nxc5 {[%clk 0:02:52]}  Bg4 {[%clk 0:03:01]} 17. Re1 {[%clk 0:02:44]}  Qa5 {[%clk 0:03:01]} 18. a3 {[%clk 0:02:14]}  Qb5 {[%clk 0:03:01]} 19. Nd3 {[%clk 0:01:27]}  a5 {[%clk 0:02:56]} 20. h3 {[%clk 0:01:26]}  Bf5 {[%clk 0:02:54]} 21. Nc5 {[%clk 0:01:16]}  Qxb2 {[%clk 0:02:49]} 22. Qa4 {[%clk 0:01:06]}  Rxe2 {[%clk 0:02:39]} 23. Rxe2 {[%clk 0:00:51]}  Qxc1+ {[%clk 0:02:37]} 24. Kh2 {[%clk 0:00:52]}  Qxc5 {[%clk 0:02:38]} 0-1


[Site "https://www.chess.com"]

[Event "Titled Tuesday Blitz January 17 Early 2023"]
[White "Tsotsonava, Elene"]
[Black "Lymar, Vladislav"]
[WhiteFideId "13615939"]
[BlackFideId "14162180"]
[WhiteElo "2053"]
[BlackElo "2119"]
[Result "0-1"]
[Round "06"]
[TimeControl "180+2"]
[Date "2023.01.17"]
[WhiteClock "0:00:22"]
[BlackClock "0:00:31"]

1. e4 {[%clk 0:02:55]}  Nc6 {[%clk 0:02:59]} 2. Nf3 {[%clk 0:02:55]}  d5 {[%clk 0:02:59]} 3. exd5 {[%clk 0:02:52]}  Qxd5 {[%clk 0:02:59]} 4. Nc3 {[%clk 0:02:52]}  Qh5 {[%clk 0:03:00]} 5. Be2 {[%clk 0:02:50]}  Bg4 {[%clk 0:02:58]} 6. O-O {[%clk 0:02:49]}  O-O-O {[%clk 0:02:58]} 7. h3 {[%clk 0:02:49]}  Nf6 {[%clk 0:02:56]} 8. hxg4 {[%clk 0:02:43]}  Nxg4 {[%clk 0:02:55]} 9. d3 {[%clk 0:02:42]}  e5 {[%clk 0:02:45]} 10. Nh4 {[%clk 0:02:39]}  f5 {[%clk 0:02:41]} 11. g3 {[%clk 0:02:24]}  g5 {[%clk 0:02:39]} 12. Bxg4 {[%clk 0:02:15]}  fxg4 {[%clk 0:02:40]} 13. Nf5 {[%clk 0:01:49]}  e4 {[%clk 0:02:28]} 14. Nxe4 {[%clk 0:01:46]}  Ne5 {[%clk 0:02:28]} 15. Nxg5 {[%clk 0:01:46]}  h6 {[%clk 0:02:20]} 16. Kg2 {[%clk 0:01:37]}  Bc5 {[%clk 0:01:18]} 17. Rh1 {[%clk 0:01:09]}  Qg6 {[%clk 0:01:17]} 18. Nh4 {[%clk 0:01:01]}  Qc6+ {[%clk 0:01:14]} 19. Ne4 {[%clk 0:00:59]}  Rhf8 {[%clk 0:01:13]} 20. Bf4 {[%clk 0:00:55]}  h5 {[%clk 0:01:02]} 21. Rf1 {[%clk 0:00:47]}  Ng6 {[%clk 0:01:00]} 22. Nxg6 {[%clk 0:00:46]}  Qxg6 {[%clk 0:01:00]} 23. Nxc5 {[%clk 0:00:46]}  h4 {[%clk 0:01:01]} 24. Qe2 {[%clk 0:00:40]}  Rde8 {[%clk 0:00:56]} 25. Ne4 {[%clk 0:00:39]}  Qh7 {[%clk 0:00:45]} 26. Rh1 {[%clk 0:00:32]}  h3+ {[%clk 0:00:44]} 27. Kh2 {[%clk 0:00:32]}  Qh5 {[%clk 0:00:43]} 28. Qe3 {[%clk 0:00:30]}  Kb8 {[%clk 0:00:38]} 29. Rhe1 {[%clk 0:00:28]}  Qd5 {[%clk 0:00:36]} 30. Nf6 {[%clk 0:00:22]}  Qg2# {[%clk 0:00:31]} 0-1


[Site "https://www.chess.com"]

[Event "Titled Tuesday Blitz January 17 Early 2023"]
[White "Padmini, Rout"]
[Black "Sailer, Mike"]
[WhiteFideId "5029295"]
[BlackFideId "2012901"]
[WhiteElo "2375"]
[BlackElo "2109"]
[Result "1-0"]
[Round "06"]
[TimeControl "180+2"]
[Date "2023.01.17"]
[WhiteClock "0:01:54"]
[BlackClock "0:00:02"]

1. Nf3 {[%clk 0:03:00]}  d5 {[%clk 0:02:57]} 2. g3 {[%clk 0:03:01]}  Nf6 {[%clk 0:02:54]} 3. Bg2 {[%clk 0:03:01]}  Bf5 {[%clk 0:02:54]} 4. O-O {[%clk 0:03:02]}  e6 {[%clk 0:02:54]} 5. d3 {[%clk 0:03:02]}  Be7 {[%clk 0:02:54]} 6. Nbd2 {[%clk 0:03:02]}  O-O {[%clk 0:02:55]} 7. Nh4 {[%clk 0:03:01]}  Bg4 {[%clk 0:02:54]} 8. h3 {[%clk 0:03:01]}  Bh5 {[%clk 0:02:55]} 9. g4 {[%clk 0:03:01]}  Nfd7 {[%clk 0:02:55]} 10. Nf5 {[%clk 0:02:58]}  exf5 {[%clk 0:02:51]} 11. gxh5 {[%clk 0:02:57]}  Nf6 {[%clk 0:02:44]} 12. h6 {[%clk 0:02:57]}  g6 {[%clk 0:02:44]} 13. c4 {[%clk 0:02:58]}  c6 {[%clk 0:02:33]} 14. Qb3 {[%clk 0:02:53]}  Qb6 {[%clk 0:02:29]} 15. Qc2 {[%clk 0:02:40]}  Re8 {[%clk 0:02:26]} 16. b3 {[%clk 0:02:40]}  Nbd7 {[%clk 0:02:24]} 17. Bb2 {[%clk 0:02:40]}  Bf8 {[%clk 0:02:18]} 18. e4 {[%clk 0:02:38]}  fxe4 {[%clk 0:02:15]} 19. dxe4 {[%clk 0:02:39]}  Nxe4 {[%clk 0:02:11]} 20. Bxe4 {[%clk 0:02:25]}  dxe4 {[%clk 0:02:10]} 21. Nxe4 {[%clk 0:02:26]}  Rxe4 {[%clk 0:01:39]} 22. Qxe4 {[%clk 0:02:23]}  Bxh6 {[%clk 0:01:40]} 23. Rad1 {[%clk 0:02:20]}  Nf8 {[%clk 0:00:53]} 24. Qe5 {[%clk 0:02:15]}  f6 {[%clk 0:00:48]} 25. Qxf6 {[%clk 0:02:13]}  Qc5 {[%clk 0:00:37]} 26. Qh8+ {[%clk 0:02:05]}  Kf7 {[%clk 0:00:36]} 27. Rfe1 {[%clk 0:02:04]}  Qg5+ {[%clk 0:00:20]} 28. Kf1 {[%clk 0:02:02]}  Qf5 {[%clk 0:00:09]} 29. Qc3 {[%clk 0:01:56]}  Ne6 {[%clk 0:00:02]} 30. Rd7+ {[%clk 0:01:54]} 1-0


[Site "https://www.chess.com"]

[Event "Titled Tuesday Blitz January 17 Early 2023"]
[White "Lauridsen, Jesper Morch"]
[Black "Harsha Bharathakoti"]
[WhiteFideId "1401890"]
[BlackFideId "5078776"]
[WhiteElo "2309"]
[BlackElo "2602"]
[Result "0-1"]
[Round "06"]
[TimeControl "180+2"]
[Date "2023.01.17"]
[WhiteClock "0:00:18"]
[BlackClock "0:00:15"]

1. e4 {[%clk 0:03:00]}  c6 {[%clk 0:02:45]} 2. d4 {[%clk 0:03:00]}  d5 {[%clk 0:02:46]} 3. exd5 {[%clk 0:03:00]}  cxd5 {[%clk 0:02:46]} 4. c4 {[%clk 0:03:01]}  Nf6 {[%clk 0:02:46]} 5. Nc3 {[%clk 0:03:02]}  Nc6 {[%clk 0:02:47]} 6. Nf3 {[%clk 0:03:02]}  g6 {[%clk 0:02:48]} 7. cxd5 {[%clk 0:03:02]}  Nxd5 {[%clk 0:02:48]} 8. Bc4 {[%clk 0:03:02]}  Nxc3 {[%clk 0:02:40]} 9. Qb3 {[%clk 0:02:44]}  Nd5 {[%clk 0:02:26]} 10. Bxd5 {[%clk 0:02:41]}  e6 {[%clk 0:02:27]} 11. Bxc6+ {[%clk 0:02:33]}  bxc6 {[%clk 0:02:28]} 12. O-O {[%clk 0:02:28]}  Qd5 {[%clk 0:02:27]} 13. Qxd5 {[%clk 0:02:20]}  cxd5 {[%clk 0:02:27]} 14. Bf4 {[%clk 0:02:19]}  f6 {[%clk 0:02:27]} 15. Rac1 {[%clk 0:02:15]}  g5 {[%clk 0:02:27]} 16. Bg3 {[%clk 0:02:03]}  h5 {[%clk 0:02:27]} 17. h4 {[%clk 0:02:01]}  g4 {[%clk 0:02:27]} 18. Nd2 {[%clk 0:01:44]}  Rh7 {[%clk 0:01:21]} 19. Nb3 {[%clk 0:01:42]}  Rb7 {[%clk 0:01:21]} 20. Rc2 {[%clk 0:01:35]}  Bd7 {[%clk 0:01:12]} 21. Na5 {[%clk 0:01:00]}  Rb5 {[%clk 0:00:51]} 22. Nc6 {[%clk 0:01:00]}  a5 {[%clk 0:00:29]} 23. a4 {[%clk 0:00:44]}  Rb6 {[%clk 0:00:28]} 24. Rfc1 {[%clk 0:00:43]}  Rc8 {[%clk 0:00:16]} 25. Nxa5 {[%clk 0:00:38]}  Rxc2 {[%clk 0:00:16]} 26. Rxc2 {[%clk 0:00:38]}  Rb4 {[%clk 0:00:17]} 27. b3 {[%clk 0:00:24]}  Rxd4 {[%clk 0:00:17]} 28. Nb7 {[%clk 0:00:22]}  e5 {[%clk 0:00:16]} 29. Kh2 {[%clk 0:00:20]}  Rb4 {[%clk 0:00:15]} 30. Rc3 {[%clk 0:00:18]}  Rxb7 {[%clk 0:00:15]} 0-1


[Site "https://www.chess.com"]